bitfinex/quotes_ETHUSD_20220109
["timestamp","ask_amount","ask_price","bid_price","bid_amount"]
[1641747883143,2.99996639,3170.1,3170.0,18.81658946]
[1641747883345,2.99996639,3170.1,3170.0,19.27443946]
[1641747883545,3.00280851,3170.1,3170.0,20.35471368]
[1641747884547,0.13719649,3170.1,3170.0,20.35471368]
[1641747884747,0.13719649,3170.1,3170.0,1.53812422]
[1641747885252,0.08719649,3170.1,3170.0,20.35812422]
[1641747886093,0.08719649,3170.1,3170.0,1.53812422]
[1641747886295,0.08719649,3170.1,3170.0,20.35812422]
[1641747886692,0.05569649,3170.1,3170.0,20.35812422]
[1641747888295,6.23529412,3170.3,3170.0,20.35812422]
[1641747888495,6.23529412,3170.3,3170.1,1.07885]
[1641747888695,6.23529412,3170.3,3170.2,1.16739]
[1641747888899,6.23529412,3170.3,3170.2,19.98739]
[1641747889094,6.23643097,3170.3,3170.2,19.98739]
[1641747889297,6.23643097,3170.3,3170.2,2.16739]
[1641747889946,6.23643097,3170.3,3170.2,20.98739]
[1641747889947,6.18643097,3170.3,3170.2,20.98739]
[1641747891749,6.18643097,3170.3,3170.2,1.179]
[1641747892346,6.18643097,3170.3,3170.2,1.96738]
[1641747892950,6.18643097,3170.3,3170.2,20.78738]
[1641747893148,6.18643097,3170.3,3170.2,0.179]
[1641747893403,6.18643097,3170.3,3170.2,1.179]
[1641747893995,6.18643097,3170.3,3170.2,0.179]
[1641747895096,6.18643097,3170.3,3169.9,31.99631333]
[1641747895695,6.18643097,3170.3,3170.2,0.00101838]
[1641747895896,11.51875819,3170.3,3170.2,0.00101838]
[1641747896096,7.41875819,3170.3,3170.2,0.00101838]
[1641747896502,7.41875819,3170.3,3170.2,1.838e-05]
[1641747896896,7.41875819,3170.3,3169.9,31.99631333]
[1641747897847,7.41875819,3170.3,3170.2,0.00101838]
[1641747898847,7.42035819,3170.3,3169.9,31.99631333]
[1641747899448,7.42035819,3170.3,3169.9,31.89631333]
[1641747899750,7.42035819,3170.3,3170.2,0.00101838]
[1641747900910,7.42035819,3170.3,3169.9,31.89631333]
[1641747901909,14.0,3169.8,3168.7,0.38070527]
[1641747902105,0.01264244,3168.8,3168.7,0.00170527]
[1641747902305,0.01264244,3168.8,3168.2,0.07888]
[1641747902904,0.789121,3168.9,3168.2,0.07888]
[1641747903105,0.789121,3168.9,3168.1,3.72641628]
[1641747903504,0.789121,3168.9,3168.2,0.01080004]
[1641747903703,0.789121,3168.9,3168.3,0.07889]
[1641747904107,5.4428,3169.0,3168.4,0.0096632]
[1641747904305,10.1182421,3169.0,3168.4,0.0096632]
[1641747904740,10.013215,3169.0,3168.4,0.0096632]
[1641747904940,0.86809,3168.9,3168.4,0.0096632]
[1641747905142,0.7891994,3168.7,3168.4,0.0096632]
[1641747905339,0.07889,3168.6,3168.4,0.0096632]
[1641747905940,0.7891994,3168.7,3168.4,0.0096632]
[1641747906140,0.868036,3168.9,3168.4,0.01068168]
[1641747906340,5.52168,3169.0,3168.4,0.01068168]
[1641747906541,5.52168,3169.0,3168.5,0.00909477]
[1641747906740,5.52328,3169.0,3168.5,0.00909477]
[1641747907147,0.01238836,3168.8,3168.5,0.00909477]
[1641747907342,1.5784534,3168.7,3168.5,0.00909477]
[1641747907743,0.7892034,3168.7,3168.5,0.00909477]
[1641747908145,0.07888,3168.8,3168.5,0.00909477]
[1641747908404,0.78921,3168.8,3168.5,0.00909477]
[1641747908595,0.78921,3168.8,3168.1,3.72641628]
[1641747908596,14.07888,3168.7,3168.1,3.62133001]
[1641747908796,14.07888,3168.7,3167.5,0.07889]
[1641747908797,0.04348,3167.9,3167.5,0.07889]
[1641747908993,0.04348,3167.9,3166.8,0.07892]
[1641747908994,0.07892,3167.8,3166.8,0.07892]
[1641747909395,0.7895497,3167.4,3166.9,0.00909478]
[1641747909594,1.1507361,3167.2,3166.9,0.00909478]
[1641747909798,0.07892,3167.1,3166.9,0.00909478]
[1641747909995,14.0,3167.0,3166.3,3.07892]
[1641747910195,14.00113684,3167.0,3166.3,2.92892]
[1641747910498,14.00113684,3167.0,3165.0,18.82]
[1641747910499,16.3693412,3166.8,3165.2,3.3347537]
[1641747910698,0.78985,3166.4,3165.2,3.3347537]
[1641747910896,0.01212707,3166.3,3165.7,0.00397896]
[1641747911396,3.30785396,3166.3,3165.7,0.00397896]
[1641747911596,0.7899271,3166.1,3165.7,0.00397896]
[1641747912444,1.4381496,3165.9,3165.7,0.00397896]
[1641747912843,1.4381496,3165.9,3165.2,0.00682108]
[1641747913042,0.7899864,3165.7,3165.1,0.0073895]
[1641747913244,0.7899864,3165.7,3164.6,0.06]
[1641747913245,0.98933158,3165.0,3164.6,0.06]
[1641747913443,0.98933158,3165.0,3164.7,6.11]
[1641747913444,1.87363158,3165.0,3164.7,6.11]
[1641747913641,1.87363158,3165.0,3164.7,6.11227369]
[1641747913842,1.87363158,3165.0,3164.1,0.03]
[1641747913843,14.0,3164.8,3164.1,0.03]
[1641747914043,0.7903056,3164.6,3164.1,0.03]
[1641747914342,0.7903056,3164.6,3164.5,6.11]
[1641747914542,0.7903056,3164.6,3164.5,0.0001]
[1641747914746,0.7903056,3164.6,3164.5,0.00123685]
[1641747915142,0.7903056,3164.6,3164.5,0.00113685]
[1641747915342,0.5616595,3164.6,3164.5,0.00113685]
[1641747915744,0.5616595,3164.6,3163.5,0.00682109]
[1641747916022,4.16678459,3164.8,3163.7,6.11]
[1641747916023,0.7904337,3164.2,3163.7,6.11]
[1641747916206,3.58800142,3164.3,3163.7,6.11]
[1641747916506,1.5809008,3164.5,3163.8,0.00511582]
[1641747916507,3.41719723,3164.4,3163.8,0.00511582]
[1641747916706,1.19242496,3164.2,3163.8,0.00511582]
[1641747916905,14.0,3164.3,3163.7,6.04531582]
[1641747917108,4.84338964,3163.4,3162.5,0.9394361]
[1641747917309,4.84338964,3163.4,3163.0,6.11]
[1641747917310,5.67078964,3163.4,3163.0,6.11]
[1641747917509,5.67078964,3163.4,3163.0,5.91]
[1641747917706,4.79338964,3163.4,3163.0,25.185]
[1641747917908,4.79338964,3163.4,3163.2,1.41490216]
[1641747918106,4.79338964,3163.4,3163.1,1.4095886]
[1641747918307,4.79338964,3163.4,3163.1,1.36243071]
[1641747918706,0.48670586,3163.4,3163.1,1.26243071]
[1641747919106,0.43670586,3163.4,3163.1,1.26243071]
[1641747919308,0.43670586,3163.4,3163.2,0.455]
[1641747919946,0.43670586,3163.4,3163.1,1.26243071]
[1641747920150,0.43670586,3163.4,3162.5,0.9394361]
[1641747920351,0.01252726,3163.6,3162.7,9.7]
[1641747920546,0.07903,3164.1,3162.7,0.00341054]
[1641747920747,0.00113684,3163.5,3162.7,0.00341054]
[1641747921049,0.00397896,3164.0,3163.0,1.36985575]
[1641747921253,0.07902,3163.9,3163.0,1.36985575]
[1641747921548,0.00284211,3163.8,3163.1,0.00113685]
[1641747921947,0.0032,3163.4,3163.1,0.00113685]
[1641747922751,0.00341054,3163.9,3162.6,3.12128661]
[1641747923149,2.3521,3164.2,3162.7,20.35527422]
[1641747923150,0.00284211,3163.8,3162.7,20.35527422]
[1641747923405,0.00284211,3163.8,3163.3,0.01274376]
[1641747923600,0.00227369,3163.7,3163.4,1.65738844]
[1641747923800,0.00227369,3163.7,3163.5,19.61008]
[1641747923999,5.0151,3164.6,3163.6,33.35402]
[1641747924203,5.0151,3164.6,3164.2,1.21444521]
[1641747924399,0.00682108,3164.5,3164.3,0.53399]
[1641747924600,0.00682108,3164.5,3164.3,0.455]
[1641747924800,0.00625265,3164.4,3164.3,0.455]
[1641747925002,0.00625265,3164.4,3164.3,12.18399]
[1641747925303,0.00625265,3164.4,3164.3,0.53399]
[1641747925499,0.00625265,3164.4,3164.3,4.08399]
[1641747925901,4.3977,3164.9,3164.7,1.04278913]
[1641747926102,0.98933158,3165.0,3164.8,0.455]
[1641747926802,0.99391048,3165.0,3164.8,0.455]
[1641747928250,0.98933158,3165.0,3164.8,0.455]
[1641747928455,3.158e-05,3165.0,3164.9,16.97435382]
[1641747928750,4.20709,3166.0,3164.9,16.97435382]
[1641747928751,4.1281,3166.0,3165.0,14.0]
[1641747928950,4.1281,3166.0,3165.1,0.53396]
[1641747929154,0.00852636,3165.9,3165.1,0.455]
[1641747929451,0.00795793,3165.8,3165.1,0.07897]
[1641747929651,0.00795793,3165.8,3164.8,0.07896]
[1641747929851,0.00738951,3165.7,3164.9,0.455]
[1641747930253,0.00682109,3165.6,3164.9,0.455]
[1641747930652,0.00625266,3165.5,3164.9,0.455]
[1641747930891,0.00625266,3165.5,3164.9,0.755]
[1641747931092,0.00568424,3165.4,3165.0,3.08228646]
[1641747931294,0.00568424,3165.4,3165.1,0.53397]
[1641747931496,0.00511582,3165.3,3165.2,14.71347043]
[1641747931695,0.00511582,3165.3,3165.2,0.455]
[1641747932897,0.00511582,3165.3,3164.8,0.0008]
[1641747933295,0.00454739,3165.2,3164.8,0.0008]
[1641747933698,0.07897,3165.9,3164.8,0.0008]
[1641747933699,0.08294897,3165.1,3164.8,0.0008]
[1641747934098,0.00341055,3165.0,3163.9,0.07897]
[1641747934300,1.41339741,3164.8,3163.6,1.74837314]
[1641747934498,0.07899,3164.7,3164.0,0.00227369]
[1641747934748,0.07899,3164.7,3163.7,3.13439704]
[1641747934749,0.00170528,3164.7,3163.7,3.13439704]
[1641747934947,0.00113685,3164.6,3163.7,3.13439704]
[1641747935147,0.079,3164.5,3163.8,0.00341054]
[1641747935546,0.079,3164.8,3163.7,0.00397896]
[1641747935750,0.07899,3164.9,3163.9,1.17265953]
[1641747935948,0.00170528,3164.7,3163.9,1.17265953]
[1641747936147,0.0022737,3164.8,3164.0,0.00227369]
[1641747936448,0.00170528,3164.7,3164.0,0.00227369]
[1641747936746,0.00113685,3164.6,3164.0,0.00227369]
[1641747937147,0.07899,3165.1,3164.0,0.00227369]
[1641747937148,0.7902788,3164.9,3164.0,0.00227369]
[1641747937348,0.8692688,3164.9,3163.7,0.08296896]
[1641747937551,0.0022737,3164.8,3163.7,0.00397896]
[1641747937747,0.0022737,3164.8,3163.6,0.379]
[1641747937748,0.07899,3164.7,3163.8,0.00341054]
[1641747937952,0.08069528,3164.7,3163.7,0.00397896]
[1641747938252,0.00113685,3164.6,3163.7,0.00397896]
[1641747938692,0.079,3164.5,3163.7,0.00397896]
[1641747939094,0.8694,3164.5,3163.7,0.00397896]
[1641747939296,0.8694,3164.5,3163.3,1.02262037]
[1641747939494,1.42723348,3164.4,3162.9,0.00852635]
[1641747939694,1.42723348,3164.4,3162.8,3.14342411]
[1641747939695,0.07902,3164.3,3163.4,0.00568423]
[1641747939896,0.7904159,3164.2,3162.9,0.00852635]
[1641747940098,0.079,3164.4,3163.0,0.45802]
[1641747940295,6.82656865,3164.6,3163.1,3.05142808]
[1641747940296,0.07902,3164.5,3163.1,3.05142808]
[1641747940496,0.07902,3164.5,3163.7,1.2763089]
[1641747940697,5.32473685,3164.6,3163.7,1.2763089]
[1641747940998,5.32473685,3164.6,3163.8,0.00341054]
[1641747941397,5.32473685,3164.6,3163.3,0.00625265]
[1641747941997,5.32473685,3164.6,3163.4,1.11752242]
[1641747942449,5.32473685,3164.6,3163.5,0.00511581]
[1641747942849,6.11505375,3164.6,3163.9,1.18382504]
[1641747943053,5.24573685,3164.6,3164.0,0.45799]
[1641747943351,4.02703685,3164.6,3164.4,0.99947829]
[1641747943557,0.00113685,3164.6,3164.5,4.079]
[1641747943749,0.00113685,3164.6,3164.5,1.25789115]
[1641747943950,0.00113685,3164.6,3164.4,0.99947829]
[1641747944150,0.00113685,3164.6,3164.4,0.07899]
[1641747944356,0.00113685,3164.6,3164.1,0.00170527]
[1641747944357,5.739,3162.4,3161.8,1.36089577]
[1641747944552,5.6438501,3162.4,3161.8,1.36089577]
[1641747944753,5.6438501,3162.4,3161.9,0.39150531]
[1641747944951,5.6438501,3162.4,3162.0,19.61044]
[1641747945151,5.6438501,3162.4,3162.3,15.21019908]
[1641747945354,5.6438501,3162.4,3162.3,1.58919908]
[1641747945551,5.6438501,3162.4,3162.3,1.5494307]
[1641747945993,5.6438501,3162.4,3162.3,12.5994307]
[1641747945994,5.1008775,3162.4,3162.3,12.5994307]
[1641747946298,2.32930852,3163.0,3162.3,12.5994307]
[1641747946299,2.32930852,3163.0,3162.4,5.3]
[1641747946491,2.32930852,3163.0,3162.3,1.4494307]
[1641747946693,2.32930852,3163.0,3162.9,1.13535364]
[1641747946893,2.32930852,3163.0,3162.4,0.00966319]
[1641747947093,2.32930852,3163.0,3162.3,1.43919908]
[1641747947094,2.32930852,3163.0,3162.9,0.00682108]
[1641747947293,2.32930852,3163.0,3162.4,0.00966319]
[1641747947492,2.32930852,3163.0,3162.3,1.43919908]
[1641747947493,2.32930852,3163.0,3162.3,1.39886227]
[1641747947692,0.00284211,3162.9,3162.3,1.39886227]
[1641747947893,0.07904,3163.5,3162.3,1.39886227]
[1641747948096,0.7905387,3163.4,3162.4,0.00203312]
[1641747948293,3.27490196,3163.3,3162.4,0.00203312]
[1641747948496,0.07903,3163.2,3162.4,0.00203312]
[1641747948695,0.08154426,3163.2,3162.4,0.00203312]
[1641747948997,0.00194584,3163.1,3162.3,0.00260155]
[1641747949196,0.790667,3162.7,3162.3,0.00260155]
[1641747949395,0.790667,3162.7,3162.1,1.3399128]
[1641747949396,0.07904,3162.6,3162.1,1.3399128]
[1641747949648,3.22419938,3163.0,3162.1,1.3399128]
[1641747949649,0.00137742,3163.0,3162.1,1.3399128]
[1641747949842,0.00137742,3163.0,3162.2,0.00316997]
[1641747950043,0.00080899,3162.9,3162.5,1.45109695]
[1641747950448,0.7905752,3163.1,3160.1,1.61219006]
[1641747950449,13.8,3161.0,3160.1,1.61219006]
[1641747950643,13.8,3161.0,3159.9,2.72213557]
[1641747950644,1.45348446,3160.1,3159.9,2.67213557]
[1641747951444,1.45348446,3160.1,3160.0,9.20139657]
[1641747951647,1.45348446,3160.1,3160.0,1.06187542]
[1641747951844,1.45348446,3160.1,3158.7,0.83042706]
[1641747952043,1.45348446,3160.1,3158.7,0.379]
[1641747952242,1.45348446,3160.1,3158.9,0.01875798]
[1641747952644,1.45348446,3160.1,3159.8,18.82]
[1641747952852,8.446e-05,3160.1,3159.8,18.82]
[1641747953045,8.446e-05,3160.1,3160.0,5.95]
[1641747953242,8.446e-05,3160.1,3159.9,0.01307374]
[1641747953494,8.446e-05,3160.1,3160.0,11.84150532]
[1641747953696,8.446e-05,3160.1,3160.0,19.199]
[1641747953896,8.446e-05,3160.1,3160.0,20.51150532]
[1641747954096,3.8538,3161.4,3160.0,20.51150532]
[1641747954097,0.00016904,3161.2,3160.1,14.0]
[1641747954298,0.00016904,3161.2,3160.2,22.80686626]
[1641747954497,0.00016904,3161.2,3160.4,18.82]
[1641747954696,0.00016904,3161.2,3160.5,3.55700128]
[1641747954895,0.00016904,3161.2,3160.8,0.23721]
[1641747955095,3.26896904,3161.4,3160.9,0.679]
[1641747955296,3.26896904,3161.4,3161.3,1.13642718]
[1641747955495,3.26896904,3161.4,3161.3,1.51542718]
[1641747955696,3.26896904,3161.4,3161.3,1.52054299]
[1641747956799,15.1004448,3161.5,3161.3,1.52054299]
[1641747957163,15.1004448,3161.5,3161.4,0.00454739]
[1641747957755,15.1004448,3161.5,3161.4,0.38354739]
[1641747957954,0.0045789,3162.0,3161.5,15.1004448]
[1641747958155,0.0045789,3162.0,3161.6,1.379]
[1641747958355,0.0045789,3162.0,3161.6,2.06147054]
[1641747958555,0.0045789,3162.0,3161.7,0.00284212]
[1641747958755,0.0045789,3162.0,3161.9,2.31023301]
[1641747958954,0.0045789,3162.0,3161.9,2.98923301]
[1641747959155,0.0045789,3162.0,3161.9,7.59093828]
[1641747959359,0.0045789,3162.0,3161.9,2.99093828]
[1641747959557,0.0045789,3162.0,3161.9,21.81093828]
[1641747959757,0.0045789,3162.0,3161.9,2.99093828]
[1641747959959,0.0045789,3162.0,3161.9,2.69093828]
[1641747960357,0.09630921,3163.0,3162.5,1.19941149]
[1641747960559,0.0045789,3162.6,3162.5,1.19941149]
[1641747960761,0.0045789,3162.6,3162.5,1.57841149]
[1641747960996,0.00685259,3162.6,3162.5,1.57841149]
[1641747961397,0.00685259,3162.6,3162.5,2.82780992]
[1641747962197,0.00227369,3162.6,3162.5,2.82780992]
[1641747962396,0.00227369,3162.6,3162.5,1.57841149]
[1641747962796,0.00227369,3162.6,3162.5,0.379]
[1641747963197,0.00227369,3162.6,3161.9,0.00170527]
[1641747963597,0.00170527,3162.5,3162.1,1.13738013]
[1641747964098,3.46911174,3163.1,3161.9,0.00170527]
[1641747964099,0.00113685,3162.4,3161.9,0.00170527]
[1641747964500,3.53053221,3162.6,3161.9,0.00170527]
[1641747964501,0.07906,3162.3,3161.9,0.00170527]
[1641747964748,3.45147221,3162.6,3161.6,0.00341054]
[1641747964950,1.18833223,3163.0,3162.2,1.31090293]
[1641747964951,0.00170527,3162.5,3162.2,1.31090293]
[1641747965152,0.00170527,3162.5,3162.2,1.63990293]
[1641747965351,1.24994,3163.0,3162.2,1.63990293]
[1641747965352,0.00113685,3162.4,3162.2,1.63990293]
[1641747965752,0.00397896,3162.9,3162.2,1.63990293]
[1641747965952,0.00397896,3162.9,3162.2,0.379]
[1641747966151,1.5815212,3162.7,3162.2,0.379]
[1641747966354,0.07904,3162.6,3162.2,0.379]
[1641747966553,0.79076,3162.5,3162.2,0.379]
[1641747966752,0.00170527,3162.5,3162.2,0.379]
[1641747966956,0.00113685,3162.4,3162.3,1.31129859]
[1641747967157,0.00113685,3162.4,3162.2,0.379]
[1641747967352,0.00113685,3162.4,3162.3,1.42188875]
[1641747967953,0.7320615,3162.8,3162.3,1.42188875]
[1641747968154,0.7320615,3162.8,3162.3,1.80088875]
[1641747968394,0.00170527,3162.7,3162.3,1.80088875]
[1641747968798,0.00113684,3162.6,3162.3,1.80088875]
[1641747969196,0.00113684,3162.6,3162.4,2.8253921]
[1641747969395,0.00113684,3162.6,3162.5,32.349]
[1641747969595,0.00113684,3162.6,3162.5,19.199]
[1641747969798,0.00113684,3162.6,3162.5,19.149]
[1641747970098,0.00113684,3162.6,3162.5,0.329]
[1641747970295,0.00113684,3162.6,3162.5,22.18628752]
[1641747970496,0.00113684,3162.6,3162.5,22.48628752]
[1641747970894,0.00113684,3162.6,3162.5,23.48628752]
[1641747971099,0.00113684,3162.6,3162.5,0.329]
[1641747975899,4.50113684,3162.6,3162.5,0.329]
[1641747976297,4.50113684,3162.6,3162.0,0.379]
[1641747976499,0.7908396,3162.4,3162.0,0.379]
[1641747976696,0.07904,3162.3,3162.1,0.00170527]
[1641747977300,0.07904,3162.3,3161.7,0.00397897]
[1641747977509,0.07904,3162.3,3160.7,24.93]
[1641747977510,14.0,3160.6,3159.6,1.51811712]
[1641747977699,14.0,3160.6,3159.6,1.42001712]
[1641747977700,0.0127422,3160.0,3159.6,1.42001712]
[1641747977898,0.0127422,3160.0,3159.7,0.01136847]
[1641747978099,0.2837,3160.1,3159.7,0.01136847]
[1641747978299,0.0791,3160.2,3159.8,0.379]
[1641747978498,0.0791,3160.2,3159.9,2.70143874]
[1641747978699,23.54443812,3160.7,3159.9,21.53167036]
[1641747978897,23.54443812,3160.7,3160.6,1.11808973]
[1641747978898,19.92833812,3160.7,3160.6,1.11808973]
[1641747979100,19.92833812,3160.7,3160.6,1.49708973]
[1641747979298,19.92833812,3160.7,3160.6,20.40242239]
[1641747979501,19.92833812,3160.7,3160.6,1.58242239]
[1641747979746,16.43957373,3161.5,3160.7,19.92833812]
[1641747979945,16.43957373,3161.5,3160.9,18.82]
[1641747980149,16.43957373,3161.5,3161.0,1.45807]
[1641747980347,16.43957373,3161.5,3161.1,1.16724854]
[1641747980546,16.43957373,3161.5,3161.2,0.379]
[1641747980748,16.43957373,3161.5,3161.2,0.38184212]
[1641747980947,16.43957373,3161.5,3161.3,0.00227369]
[1641747981152,16.43957373,3161.5,3161.4,0.379]
[1641747981548,16.43957373,3161.5,3161.4,0.38070527]
[1641747981751,16.43957373,3161.5,3161.4,0.68070527]
[1641747981949,16.43957373,3161.5,3161.4,19.20070527]
[1641747982652,16.43957373,3161.5,3161.4,20.94492981]
[1641747982849,16.43957373,3161.5,3161.4,23.52606981]
[1641747983048,0.2246,3161.6,3161.5,37.48220974]
[1641747983250,0.00284212,3162.2,3161.7,18.82]
[1641747983502,0.00284212,3162.2,3161.9,1.49043034]
[1641747983710,0.09126989,3163.8,3162.0,14.45806]
[1641747983711,0.0022737,3162.1,3162.0,14.45806]
[1641747983909,0.0022737,3162.1,3162.0,33.87806]
[1641747984103,0.0022737,3162.1,3162.0,36.22799085]
[1641747984505,0.0022737,3162.1,3162.0,22.22799085]
[1641747985105,0.0022737,3162.1,3162.0,3.40799085]
[1641747985310,0.0022737,3162.1,3162.0,1.80799085]
[1641747985507,0.0022737,3162.1,3162.0,2.80799085]
[1641747985706,0.0022737,3162.1,3162.0,4.56458096]
[1641747986106,0.0022737,3162.1,3162.0,5.56458096]
[1641747986508,0.0045789,3162.7,3162.1,14.0022]
[1641747986810,0.0045789,3162.7,3162.6,18.739]
[1641747987009,0.0045789,3162.7,3162.6,38.35227711]
[1641747987010,7.89e-05,3162.7,3162.6,38.35227711]
[1641747987251,2.48098257,3164.1,3162.7,12.83180695]
[1641747987550,0.01080004,3164.0,3163.9,1.1204369]
[1641747987752,0.01080004,3164.0,3163.9,1.4994369]
[1641747987952,7.862,3164.2,3163.9,0.379]
[1641747987953,0.01136846,3164.1,3163.9,0.379]
[1641747989049,1.59214936,3164.1,3163.9,0.379]
[1641747989251,0.01136846,3164.1,3163.9,0.379]
[1641747989850,2.11612024,3164.0,3163.9,0.379]
[1641747990450,0.01136846,3164.1,3163.9,0.379]
[1641747994952,0.01136846,3164.1,3163.9,3.41902611]
[1641747995154,0.01136846,3164.1,3164.0,0.079]
[1641747995351,0.01136846,3164.1,3164.0,0.458]
[1641747995551,0.01136846,3164.1,3164.0,0.758]
[1641747995855,0.01136846,3164.1,3164.0,1.67700377]
[1641747996253,3.9816,3164.9,3164.5,1.4678879]
[1641747996452,4.4678924,3165.1,3164.6,0.379]
[1641747996651,0.8690824,3165.1,3164.6,0.379]
[1641747997250,2.1127515,3165.0,3164.6,0.379]
[1641747997659,0.00454739,3164.9,3164.6,0.379]
[1641747998054,2.1127515,3165.0,3164.6,0.379]
[1641747998055,0.00397897,3164.8,3164.6,0.379]
[1641747998499,0.00341055,3164.7,3164.6,0.379]
[1641748000699,11.55341055,3164.7,3164.6,0.379]
[1641748001297,11.55341055,3164.7,3164.6,0.279]
[1641748001498,0.00341055,3164.7,3164.6,0.279]
[1641748003863,0.00341055,3164.7,3164.6,3.07358218]
[1641748004061,0.00341055,3164.7,3164.6,5.09699]
[1641748004263,0.00341055,3164.7,3164.6,6.09699]
[1641748004661,0.00341055,3164.7,3164.6,5.09699]
[1641748005264,0.00341055,3164.7,3164.6,0.279]
[1641748006102,14.00341055,3164.7,3164.6,0.0001]
[1641748006302,14.00341055,3164.7,3163.5,0.07899]
[1641748006303,14.00341055,3164.7,3164.0,0.379]
[1641748006699,0.00284212,3164.6,3164.0,0.379]
[1641748007099,0.0022737,3164.5,3164.0,0.379]
[1641748007301,0.0022737,3164.5,3164.4,1.23161756]
[1641748007499,1.5804226,3165.0,3164.4,0.379]
[1641748007699,0.09115278,3165.1,3164.4,0.379]
[1641748007700,0.01216278,3165.1,3164.4,0.379]
[1641748007901,0.00511582,3165.0,3164.4,0.379]
[1641748008299,0.01216278,3165.1,3164.4,0.379]
[1641748008300,0.00454739,3164.9,3164.4,0.379]
[1641748008701,0.79414097,3164.8,3164.4,0.379]
[1641748008904,12.6,3164.7,3164.2,1.47442995]
[1641748009102,0.00341055,3164.7,3164.3,0.379]
[1641748009303,0.00284212,3164.6,3164.3,0.379]
[1641748009661,0.0022737,3164.5,3164.3,0.379]
[1641748010050,0.7424357,3164.8,3164.3,0.379]
[1641748010250,2.93442501,3164.7,3164.3,0.379]
[1641748010450,3.01455186,3164.7,3164.3,0.379]
[1641748010650,0.08012685,3164.7,3164.3,0.379]
[1641748011050,0.00113685,3164.7,3164.3,0.379]
[1641748011252,0.7902822,3164.6,3164.3,0.379]
[1641748012052,0.00113685,3164.7,3164.4,1.43892133]
[1641748012351,0.00113685,3164.7,3164.5,0.379]
[1641748012553,2.18842685,3165.3,3164.6,1.15264408]
[1641748012751,2.18842685,3165.3,3164.7,0.379]
[1641748012752,2.18571685,3165.3,3164.7,0.379]
[1641748012952,0.00113684,3164.9,3164.7,0.379]
[1641748013402,2.16087369,3165.3,3165.0,1.41377562]
[1641748013602,2.12928369,3165.3,3165.1,0.379]
[1641748013802,0.00170527,3165.2,3165.1,0.379]
[1641748014207,0.00284212,3165.4,3165.1,0.379]
[1641748014604,0.0022737,3165.3,3165.1,0.379]
[1641748014808,0.0022737,3165.3,3165.2,1.07156186]
[1641748015011,0.00959338,3165.8,3165.2,1.45056186]
[1641748015204,0.0022737,3165.3,3165.2,1.45056186]
[1641748015407,0.00454739,3165.7,3165.2,4.21592001]
[1641748015606,0.0022737,3165.3,3165.2,5.09122001]
[1641748015808,0.00397897,3165.6,3165.2,5.69122001]
[1641748016007,0.0022737,3165.3,3165.2,6.48098001]
[1641748016207,0.00341054,3165.5,3165.2,7.78087842]
[1641748016407,0.0022737,3165.3,3165.2,7.78087842]
[1641748016611,3.6076,3166.2,3165.2,7.78087842]
[1641748016612,0.00284212,3165.4,3165.2,4.39276553]
[1641748016810,3.6076,3166.2,3165.3,0.07897]
[1641748017012,3.6076,3166.2,3165.4,0.379]
[1641748017013,3.5576,3166.2,3165.4,0.379]
[1641748017258,0.00682108,3166.1,3165.7,1.0072387]
[1641748017453,0.00682108,3166.1,3165.8,0.379]
[1641748017654,4.85625266,3166.0,3165.9,0.379]
[1641748018250,0.00625266,3166.0,3165.9,0.379]
[1641748018854,0.00625266,3166.0,3165.9,1.49086862]
[1641748021444,0.00625266,3166.0,3165.9,0.379]
[1641748021647,0.08521266,3166.0,3165.9,0.379]
[1641748021852,0.08521266,3166.0,3165.3,0.379]
[1641748022142,1.58560224,3165.9,3165.3,0.379]
[1641748022342,0.7900328,3165.7,3165.3,0.379]
[1641748022540,1.5800928,3165.7,3165.3,0.379]
[1641748022742,0.00397897,3165.6,3165.3,0.379]
[1641748022943,0.79408897,3165.6,3165.3,0.379]
[1641748023146,0.00341054,3165.5,3165.3,0.379]
[1641748023343,2.27370494,3165.6,3165.3,0.379]
[1641748023643,0.7900535,3165.3,3165.0,0.379]
[1641748024042,0.7900535,3165.3,3165.1,0.00227369]
[1641748024444,0.7900535,3165.3,3165.0,0.31827369]
[1641748025052,2.3702309,3165.3,3165.0,0.31827369]
[1641748026054,3.17214145,3165.2,3165.0,7.369e-05]
[1641748026354,0.7903099,3164.7,3164.2,0.379]
[1641748026553,3.12533377,3164.6,3164.2,0.379]
[1641748026753,4.02648989,3165.0,3164.3,0.00454739]
[1641748027056,3.1615707,3164.7,3164.3,0.00454739]
[1641748027354,3.1615707,3164.7,3164.4,0.379]
[1641748027355,0.7901569,3164.7,3164.4,0.379]
[1641748027753,0.7901569,3164.7,3164.5,0.00341054]
[1641748027952,0.7901569,3164.7,3164.6,0.379]
[1641748028400,0.7901569,3164.7,3164.6,0.38184212]
[1641748028602,14.8691469,3164.7,3164.6,0.38184212]
[1641748029206,14.0,3164.6,3163.5,1.00733402]
[1641748029404,14.079,3164.6,3163.6,0.379]
[1641748029608,14.0,3164.6,3163.7,0.379]
[1641748029903,14.0,3164.6,3163.8,0.00454739]
[1641748030102,16.370939,3164.6,3163.9,0.379]
[1641748030303,14.07899,3164.6,3163.9,0.379]
[1641748030603,0.7903601,3164.5,3164.0,0.00341054]
[1641748030804,0.07899,3164.4,3164.1,0.379]
[1641748031305,0.07899,3164.4,3164.2,0.00227369]
[1641748031503,1.6597204,3164.4,3164.2,0.38127369]
[1641748031705,3.2404804,3164.4,3164.2,0.38127369]
[1641748032006,0.01267183,3164.3,3163.3,0.379]
[1641748032260,0.079,3164.2,3163.3,0.379]
[1641748032456,0.7905769,3163.9,3163.3,0.379]
[1641748032655,1.5812,3163.6,3163.3,0.379]
[1641748032852,1.66022,3163.6,3163.3,0.379]
[1641748033056,14.0,3163.3,3162.5,0.379]
[1641748033256,0.07903,3163.2,3162.5,0.379]
[1641748033454,0.7907671,3162.9,3162.5,0.0001]
[1641748033654,1.66075,3162.8,3162.5,0.0001]
[1641748033852,1.66075,3162.8,3162.2,0.00568423]
[1641748033853,0.07903,3162.8,3162.2,0.00568423]
[1641748034254,0.07903,3162.8,3162.0,0.00682108]
[1641748034456,0.7908243,3162.7,3162.0,0.00682108]
[1641748034860,1.5817124,3162.5,3162.0,0.00682108]
[1641748035659,0.7908562,3162.4,3162.2,1.40724469]
[1641748035903,10.70809994,3163.2,3162.3,0.379]
[1641748035904,0.07904,3163.1,3162.3,0.379]